[Event "Late-Titled-Tuesday-Blitz-July-09-2024"]
[Site "Chess.com"]
[Date "2024.07.09"]
[Round "5"]
[White "ZakinIlay2306"]
[Black "m_ezat"]
[Result "0-1"]
[WhiteElo "2304"]
[BlackElo "2636"]
[TimeControl "180+1"]
[EndTime "14:52:59 PDT"]
[Termination "m_ezat won by checkmate"]

1. e4 {[%clk 0:03:00.9]} 1... e5 {[%clk 0:02:59.5]} 2. Nf3 {[%clk 0:03:00.7]}
2... Nc6 {[%clk 0:02:57.1]} 3. Bb5 {[%clk 0:03:00.6]} 3... Nge7 {[%clk
0:02:55.5]} 4. O-O {[%clk 0:02:59.5]} 4... a6 {[%clk 0:02:43.6]} 5. Ba4 {[%clk
0:02:58.2]} 5... g6 {[%clk 0:02:43.7]} 6. c3 {[%clk 0:02:57.5]} 6... Bg7 {[%clk
0:02:43.2]} 7. d4 {[%clk 0:02:57.2]} 7... exd4 {[%clk 0:02:44.1]} 8. cxd4 {[%clk
0:02:57.3]} 8... b5 {[%clk 0:02:44.7]} 9. Bb3 {[%clk 0:02:56.8]} 9... O-O {[%clk
0:02:27.1]} 10. Be3 {[%clk 0:02:49.8]} 10... d5 {[%clk 0:02:25.1]} 11. e5 {[%clk
0:02:42.8]} 11... Bg4 {[%clk 0:02:23.8]} 12. h3 {[%clk 0:02:37.4]} 12... Bxf3
{[%clk 0:02:23.4]} 13. Qxf3 {[%clk 0:02:35.1]} 13... f6 {[%clk 0:02:23.8]} 14.
exf6 {[%clk 0:02:26.5]} 14... Bxf6 {[%clk 0:02:21.3]} 15. Qd1 {[%clk 0:02:22.8]}
15... Nf5 {[%clk 0:02:19.5]} 16. Nc3 {[%clk 0:02:18.4]} 16... Nce7 {[%clk
0:01:53.9]} 17. Rc1 {[%clk 0:02:12.5]} 17... c6 {[%clk 0:01:52.4]} 18. Ne2
{[%clk 0:02:08]} 18... Nxe3 {[%clk 0:01:48.3]} 19. fxe3 {[%clk 0:02:07.7]} 19...
Bg5 {[%clk 0:01:47.5]} 20. Qd3 {[%clk 0:02:03.9]} 20... Qd6 {[%clk 0:01:45.5]}
21. Rxf8+ {[%clk 0:01:38.6]} 21... Rxf8 {[%clk 0:01:44]} 22. Re1 {[%clk
0:01:36.9]} 22... Nf5 {[%clk 0:01:38.3]} 23. e4 {[%clk 0:01:34.1]} 23... Ne3
{[%clk 0:01:07.3]} 24. Nc3 {[%clk 0:01:20.2]} 24... Qg3 {[%clk 0:01:03.6]} 25.
Qe2 {[%clk 0:01:11.2]} 25... Nxg2 {[%clk 0:01:00.6]} 26. Qxg2 {[%clk 0:00:46.7]}
26... Qxe1+ {[%clk 0:00:57.9]} 27. Kh2 {[%clk 0:00:46.1]} 27... Bf4+ {[%clk
0:00:57.1]} 28. Qg3 {[%clk 0:00:45.1]} 28... Qxg3+ {[%clk 0:00:57.4]} 29. Kh1
{[%clk 0:00:45.5]} 29... Qh2# {[%clk 0:00:58.1]} 0-1

[Event "Late-Titled-Tuesday-Blitz-July-09-2024"]
[Site "Chess.com"]
[Date "2024.07.09"]
[Round "5"]
[White "Slovineanu"]
[Black "ChessicallyInclined"]
[Result "0-1"]
[WhiteElo "2527"]
[BlackElo "2743"]
[TimeControl "180+1"]
[EndTime "14:53:06 PDT"]
[Termination "ChessicallyInclined won on time"]

1. d4 {[%clk 0:02:57.2]} 1... Nf6 {[%clk 0:03:00.2]} 2. Nf3 {[%clk 0:02:56.6]}
2... d5 {[%clk 0:03:00.6]} 3. c4 {[%clk 0:02:55.9]} 3... c6 {[%clk 0:03:00.8]}
4. e3 {[%clk 0:02:56.4]} 4... e6 {[%clk 0:03:01.2]} 5. Nbd2 {[%clk 0:02:56.5]}
5... Nbd7 {[%clk 0:03:01.8]} 6. Bd3 {[%clk 0:02:56.8]} 6... Be7 {[%clk
0:03:01.8]} 7. O-O {[%clk 0:02:55.5]} 7... O-O {[%clk 0:03:01.9]} 8. b3 {[%clk
0:02:55.8]} 8... b6 {[%clk 0:03:01.6]} 9. Bb2 {[%clk 0:02:55.9]} 9... Bb7 {[%clk
0:03:01.7]} 10. Rc1 {[%clk 0:02:55.7]} 10... Rc8 {[%clk 0:03:01.5]} 11. Qe2
{[%clk 0:02:55.3]} 11... c5 {[%clk 0:03:01.3]} 12. Rfd1 {[%clk 0:02:55.7]} 12...
Re8 {[%clk 0:03:01]} 13. h3 {[%clk 0:02:44.2]} 13... Bd6 {[%clk 0:02:51.5]} 14.
Ne5 {[%clk 0:02:29]} 14... cxd4 {[%clk 0:02:50.8]} 15. exd4 {[%clk 0:02:28.7]}
15... Qe7 {[%clk 0:02:41.6]} 16. Ndf3 {[%clk 0:02:21.4]} 16... Ne4 {[%clk
0:02:37.2]} 17. Nxd7 {[%clk 0:02:08.3]} 17... Qxd7 {[%clk 0:02:36.9]} 18. Ne5
{[%clk 0:01:51.2]} 18... Qe7 {[%clk 0:02:31.3]} 19. cxd5 {[%clk 0:01:42.7]}
19... Rxc1 {[%clk 0:02:21.3]} 20. Rxc1 {[%clk 0:01:38.8]} 20... exd5 {[%clk
0:02:19.8]} 21. Bb5 {[%clk 0:01:30.6]} 21... Rc8 {[%clk 0:02:13.2]} 22. Rxc8+
{[%clk 0:01:15.2]} 22... Bxc8 {[%clk 0:02:13.1]} 23. Bc6 {[%clk 0:01:11.6]}
23... Be6 {[%clk 0:01:57.9]} 24. Qb5 {[%clk 0:01:10.6]} 24... Qh4 {[%clk
0:01:42.7]} 25. Qe2 {[%clk 0:00:34]} 25... h6 {[%clk 0:01:40.5]} 26. Bc1 {[%clk
0:00:19.3]} 26... Nc3 {[%clk 0:01:33.6]} 27. Qd3 {[%clk 0:00:13.7]} 27... Qxd4
{[%clk 0:01:33]} 28. Qxd4 {[%clk 0:00:07.3]} 28... Ne2+ {[%clk 0:01:33.3]} 29.
Kf1 {[%clk 0:00:06.3]} 29... Nxd4 {[%clk 0:01:34.2]} 0-1

[Event "Late-Titled-Tuesday-Blitz-July-09-2024"]
[Site "Chess.com"]
[Date "2024.07.09"]
[Round "5"]
[White "merinasian"]
[Black "ozates"]
[Result "1-0"]
[WhiteElo "2443"]
[BlackElo "2618"]
[TimeControl "180+1"]
[EndTime "14:53:07 PDT"]
[Termination "merinasian won by resignation"]

1. d4 {[%clk 0:03:00.9]} 1... Nf6 {[%clk 0:02:59.7]} 2. Nf3 {[%clk 0:03:00.8]}
2... g6 {[%clk 0:03:00.6]} 3. Bf4 {[%clk 0:02:59.4]} 3... Bg7 {[%clk 0:03:00.9]}
4. e3 {[%clk 0:02:59.8]} 4... O-O {[%clk 0:03:01.8]} 5. h3 {[%clk 0:02:58.4]}
5... d6 {[%clk 0:03:01.3]} 6. Be2 {[%clk 0:02:58.9]} 6... b6 {[%clk 0:03:01.2]}
7. O-O {[%clk 0:02:59.3]} 7... Bb7 {[%clk 0:03:00.5]} 8. c4 {[%clk 0:02:59.9]}
8... c5 {[%clk 0:02:59.4]} 9. d5 {[%clk 0:02:59.5]} 9... Nbd7 {[%clk 0:02:40]}
10. Nc3 {[%clk 0:02:58.8]} 10... a6 {[%clk 0:02:32.9]} 11. a4 {[%clk 0:02:55.7]}
11... Ne8 {[%clk 0:02:26.7]} 12. e4 {[%clk 0:02:51.3]} 12... Bc8 {[%clk
0:02:27.1]} 13. Re1 {[%clk 0:02:50.3]} 13... Ne5 {[%clk 0:02:24]} 14. Bf1 {[%clk
0:02:41.2]} 14... Nxf3+ {[%clk 0:02:20.2]} 15. Qxf3 {[%clk 0:02:39.8]} 15... Bd7
{[%clk 0:02:17]} 16. e5 {[%clk 0:02:38.6]} 16... dxe5 {[%clk 0:02:16]} 17. Bxe5
{[%clk 0:02:38.4]} 17... Nd6 {[%clk 0:02:15.2]} 18. Bxg7 {[%clk 0:02:30.1]}
18... Kxg7 {[%clk 0:02:16.1]} 19. b3 {[%clk 0:02:29.9]} 19... Re8 {[%clk
0:02:07.5]} 20. Ra2 {[%clk 0:02:21.1]} 20... Nf5 {[%clk 0:01:56.5]} 21. Ne4
{[%clk 0:02:15.4]} 21... Qc7 {[%clk 0:01:55.4]} 22. Qc3+ {[%clk 0:02:13.7]}
22... Nd4 {[%clk 0:01:50.1]} 23. b4 {[%clk 0:02:08.2]} 23... f6 {[%clk
0:01:42.8]} 24. a5 {[%clk 0:02:07.8]} 24... bxa5 {[%clk 0:01:34.6]} 25. bxc5
{[%clk 0:02:06.4]} 25... Nf5 {[%clk 0:01:33.5]} 26. d6 {[%clk 0:02:03.4]} 26...
Qc6 {[%clk 0:01:28.5]} 27. Rd2 {[%clk 0:01:46.4]} 27... e5 {[%clk 0:01:25.3]}
28. g3 {[%clk 0:01:37.1]} 28... Nd4 {[%clk 0:01:23.4]} 29. Bg2 {[%clk
0:01:34.6]} 29... f5 {[%clk 0:00:53.4]} 30. Rxd4 {[%clk 0:01:24.9]} 30... exd4
{[%clk 0:00:53.8]} 31. Qxd4+ {[%clk 0:01:24.9]} 31... Kh6 {[%clk 0:00:52.4]} 32.
Qd2+ {[%clk 0:01:17.7]} 32... Kg7 {[%clk 0:00:51.3]} 33. Qc3+ {[%clk 0:01:07.7]}
33... Kh6 {[%clk 0:00:49.1]} 34. Nf6 {[%clk 0:01:07.8]} 34... Rxe1+ {[%clk
0:00:48.3]} 35. Qxe1 {[%clk 0:01:07.8]} 1-0

[Event "Late-Titled-Tuesday-Blitz-July-09-2024"]
[Site "Chess.com"]
[Date "2024.07.09"]
[Round "5"]
[White "sammartin99"]
[Black "yaguigor"]
[Result "0-1"]
[WhiteElo "2421"]
[BlackElo "2624"]
[TimeControl "180+1"]
[EndTime "14:53:11 PDT"]
[Termination "yaguigor won by resignation"]

1. d4 {[%clk 0:02:55.5]} 1... d5 {[%clk 0:02:59]} 2. c4 {[%clk 0:02:54.8]} 2...
e6 {[%clk 0:02:57.6]} 3. Nc3 {[%clk 0:02:53.9]} 3... c6 {[%clk 0:02:57.4]} 4. e3
{[%clk 0:02:52.8]} 4... Nf6 {[%clk 0:02:56.1]} 5. Nf3 {[%clk 0:02:52.1]} 5...
Nbd7 {[%clk 0:02:55.5]} 6. Qc2 {[%clk 0:02:51.3]} 6... Bd6 {[%clk 0:02:54.7]} 7.
b3 {[%clk 0:02:50.1]} 7... O-O {[%clk 0:02:53.7]} 8. Bd3 {[%clk 0:02:48.9]} 8...
e5 {[%clk 0:02:52.6]} 9. cxd5 {[%clk 0:02:48.3]} 9... cxd5 {[%clk 0:02:52]} 10.
Nb5 {[%clk 0:02:48]} 10... Bb4+ {[%clk 0:02:49.2]} 11. Nd2 {[%clk 0:02:46.9]}
11... e4 {[%clk 0:02:47.5]} 12. Be2 {[%clk 0:02:43.9]} 12... a6 {[%clk
0:02:44.5]} 13. Nc3 {[%clk 0:02:41.1]} 13... Re8 {[%clk 0:02:40.8]} 14. a4
{[%clk 0:02:34.8]} 14... Qe7 {[%clk 0:02:35.6]} 15. O-O {[%clk 0:02:12.3]} 15...
Nf8 {[%clk 0:02:25.8]} 16. a5 {[%clk 0:02:07.1]} 16... Bd7 {[%clk 0:02:22]} 17.
Na4 {[%clk 0:01:57.2]} 17... Rac8 {[%clk 0:02:07.9]} 18. Qa2 {[%clk 0:01:53.2]}
18... Bxa5 {[%clk 0:01:47.8]} 19. Nc5 {[%clk 0:01:49.3]} 19... Bc3 {[%clk
0:01:39.6]} 20. Rb1 {[%clk 0:01:47]} 20... Bc6 {[%clk 0:01:38.8]} 21. Ba3 {[%clk
0:01:41.2]} 21... Bxd2 {[%clk 0:01:36.6]} 22. Qxd2 {[%clk 0:01:00.9]} 22... b6
{[%clk 0:01:35.1]} 23. Bxa6 {[%clk 0:00:55.4]} 23... Ra8 {[%clk 0:01:34.2]} 24.
Bb4 {[%clk 0:00:55.6]} 24... bxc5 {[%clk 0:01:32.9]} 25. Bxc5 {[%clk 0:00:56.5]}
25... Qd7 {[%clk 0:01:31.9]} 26. Be2 {[%clk 0:00:53.1]} 26... Bb5 {[%clk
0:01:31.2]} 27. Ra1 {[%clk 0:00:46]} 27... Ne6 {[%clk 0:01:28]} 28. Bb6 {[%clk
0:00:44.7]} 28... Reb8 {[%clk 0:01:24]} 29. Rxa8 {[%clk 0:00:40.7]} 29... Rxa8
{[%clk 0:01:23.7]} 30. h3 {[%clk 0:00:40.2]} 30... Rb8 {[%clk 0:01:17.1]} 31.
Bc5 {[%clk 0:00:32.7]} 31... Bxe2 {[%clk 0:01:15.7]} 32. Qxe2 {[%clk 0:00:33.6]}
32... Rxb3 {[%clk 0:01:15.2]} 33. Rc1 {[%clk 0:00:31.9]} 33... h5 {[%clk
0:01:13.1]} 0-1

[Event "Late-Titled-Tuesday-Blitz-July-09-2024"]
[Site "Chess.com"]
[Date "2024.07.09"]
[Round "5"]
[White "oskariot"]
[Black "swayamsm"]
[Result "0-1"]
[WhiteElo "2791"]
[BlackElo "2635"]
[TimeControl "180+1"]
[EndTime "14:53:18 PDT"]
[Termination "swayamsm won by resignation"]

1. e4 {[%clk 0:02:58.6]} 1... c5 {[%clk 0:02:58.2]} 2. Nf3 {[%clk 0:02:58.5]}
2... d6 {[%clk 0:02:58.5]} 3. d4 {[%clk 0:02:58.8]} 3... cxd4 {[%clk 0:02:59.2]}
4. Nxd4 {[%clk 0:02:59.7]} 4... Nf6 {[%clk 0:02:59.3]} 5. Nc3 {[%clk 0:03:00.3]}
5... a6 {[%clk 0:02:59.9]} 6. h4 {[%clk 0:02:59.5]} 6... Bd7 {[%clk 0:02:57.1]}
7. Be2 {[%clk 0:02:47.1]} 7... Nc6 {[%clk 0:02:44.9]} 8. h5 {[%clk 0:02:41.1]}
8... e5 {[%clk 0:02:35.6]} 9. Nb3 {[%clk 0:02:36.5]} 9... Be6 {[%clk 0:02:29.7]}
10. f4 {[%clk 0:02:36.4]} 10... exf4 {[%clk 0:02:28.2]} 11. Bxf4 {[%clk
0:02:36.2]} 11... Ne5 {[%clk 0:02:26.4]} 12. Qd2 {[%clk 0:02:32.4]} 12... Qc7
{[%clk 0:02:20.6]} 13. O-O-O {[%clk 0:02:31.7]} 13... O-O-O {[%clk 0:02:19.7]}
14. Nd4 {[%clk 0:02:27.1]} 14... Be7 {[%clk 0:02:11.6]} 15. h6 {[%clk
0:02:23.9]} 15... gxh6 {[%clk 0:02:08.2]} 16. Bxh6 {[%clk 0:02:20.9]} 16... Rhg8
{[%clk 0:02:00.8]} 17. Rhg1 {[%clk 0:01:53.8]} 17... Kb8 {[%clk 0:01:30.4]} 18.
Kb1 {[%clk 0:01:52.2]} 18... Rc8 {[%clk 0:01:29.5]} 19. Bf4 {[%clk 0:01:49.8]}
19... Qa5 {[%clk 0:01:27.6]} 20. Nb3 {[%clk 0:01:45.7]} 20... Qc7 {[%clk
0:01:18.1]} 21. Nd4 {[%clk 0:01:44.6]} 21... Qa5 {[%clk 0:01:17.7]} 22. Nb3
{[%clk 0:01:29.1]} 22... Qc7 {[%clk 0:01:17.4]} 23. Be3 {[%clk 0:01:29.8]} 23...
Nc4 {[%clk 0:01:12.3]} 24. Bxc4 {[%clk 0:01:27.9]} 24... Qxc4 {[%clk 0:01:13.2]}
25. Bd4 {[%clk 0:01:07.2]} 25... Rg4 {[%clk 0:01:08.7]} 26. Qe3 {[%clk
0:00:52.8]} 26... Nxe4 {[%clk 0:01:03.8]} 27. Na5 {[%clk 0:00:25.6]} 27... Nxc3+
{[%clk 0:01:00.9]} 28. Bxc3 {[%clk 0:00:25.9]} 28... Qxa2+ {[%clk 0:01:00.9]}
29. Kc1 {[%clk 0:00:25.7]} 0-1

[Event "Late-Titled-Tuesday-Blitz-July-09-2024"]
[Site "Chess.com"]
[Date "2024.07.09"]
[Round "5"]
[White "David_George21"]
[Black "Goryachkina"]
[Result "0-1"]
[WhiteElo "2486"]
[BlackElo "2716"]
[TimeControl "180+1"]
[EndTime "14:53:18 PDT"]
[Termination "Goryachkina won by resignation"]

1. e4 {[%clk 0:03:00.9]} 1... c5 {[%clk 0:02:59.6]} 2. Nf3 {[%clk 0:02:59.3]}
2... e6 {[%clk 0:02:59.6]} 3. d4 {[%clk 0:02:57.5]} 3... cxd4 {[%clk 0:02:59.7]}
4. Nxd4 {[%clk 0:02:58.4]} 4... a6 {[%clk 0:02:59.7]} 5. Nc3 {[%clk 0:02:56.1]}
5... b5 {[%clk 0:02:58.9]} 6. a3 {[%clk 0:02:48.2]} 6... Bb7 {[%clk 0:02:58.5]}
7. Be3 {[%clk 0:02:48.1]} 7... Nc6 {[%clk 0:02:52.7]} 8. g3 {[%clk 0:02:45.8]}
8... Nf6 {[%clk 0:02:42.2]} 9. Bg2 {[%clk 0:02:44.9]} 9... Ne5 {[%clk 0:02:41]}
10. h3 {[%clk 0:02:36.9]} 10... Nc4 {[%clk 0:02:38.1]} 11. Bc1 {[%clk
0:02:36.7]} 11... Bc5 {[%clk 0:02:34.1]} 12. b3 {[%clk 0:02:31.5]} 12... Qb6
{[%clk 0:02:23.2]} 13. Nce2 {[%clk 0:02:24.2]} 13... Ne5 {[%clk 0:02:12.2]} 14.
b4 {[%clk 0:02:22.2]} 14... Be7 {[%clk 0:02:09.8]} 15. f3 {[%clk 0:02:07]} 15...
Nc4 {[%clk 0:02:02.3]} 16. O-O {[%clk 0:02:02.9]} 16... e5 {[%clk 0:02:01.4]}
17. Kh2 {[%clk 0:01:58]} 17... exd4 {[%clk 0:01:58.9]} 18. Nxd4 {[%clk
0:01:58.9]} 18... O-O {[%clk 0:01:57.7]} 19. Nf5 {[%clk 0:01:59]} 19... Rfe8
{[%clk 0:01:56.2]} 20. Bg5 {[%clk 0:01:53.3]} 20... Bf8 {[%clk 0:01:49]} 21. Re1
{[%clk 0:01:45.3]} 21... h6 {[%clk 0:01:44.7]} 22. Bf4 {[%clk 0:01:41.3]} 22...
d6 {[%clk 0:01:39.4]} 23. g4 {[%clk 0:01:32.1]} 23... Nd7 {[%clk 0:01:31]} 24.
h4 {[%clk 0:01:26.5]} 24... d5 {[%clk 0:01:29.9]} 25. exd5 {[%clk 0:01:23]}
25... Rxe1 {[%clk 0:01:29.5]} 26. Qxe1 {[%clk 0:01:22.9]} 26... Bxd5 {[%clk
0:01:28]} 27. Qc3 {[%clk 0:01:18.5]} 27... Be6 {[%clk 0:01:19.1]} 28. Nd4 {[%clk
0:01:12.4]} 28... Nf6 {[%clk 0:01:15]} 29. Nxe6 {[%clk 0:01:07.8]} 29... Qxe6
{[%clk 0:01:14.6]} 30. Re1 {[%clk 0:01:05.7]} 30... Qb6 {[%clk 0:01:13.4]} 31.
Qa1 {[%clk 0:00:57.6]} 31... Bd6 {[%clk 0:01:12]} 32. Bxd6 {[%clk 0:00:55.8]}
32... Qxd6+ {[%clk 0:01:12.2]} 33. Kh1 {[%clk 0:00:55.6]} 33... Qg3 {[%clk
0:01:11.6]} 34. h5 {[%clk 0:00:53.8]} 34... Nd5 {[%clk 0:01:07.9]} 35. Qc3
{[%clk 0:00:43.9]} 35... Nf4 {[%clk 0:01:04.7]} 36. Rg1 {[%clk 0:00:37.7]} 36...
Qh4+ {[%clk 0:01:04.1]} 0-1

[Event "Late-Titled-Tuesday-Blitz-July-09-2024"]
[Site "Chess.com"]
[Date "2024.07.09"]
[Round "5"]
[White "imdarealist"]
[Black "WilsonPalencia21"]
[Result "0-1"]
[WhiteElo "2242"]
[BlackElo "2579"]
[TimeControl "180+1"]
[EndTime "14:53:18 PDT"]
[Termination "WilsonPalencia21 won by checkmate"]

1. d4 {[%clk 0:02:58.4]} 1... Nf6 {[%clk 0:02:58.1]} 2. Bf4 {[%clk 0:02:58.1]}
2... c5 {[%clk 0:02:57.6]} 3. e3 {[%clk 0:02:55.7]} 3... d5 {[%clk 0:02:57.7]}
4. Nd2 {[%clk 0:02:47.8]} 4... Nc6 {[%clk 0:02:55.6]} 5. c3 {[%clk 0:02:48.5]}
5... Qb6 {[%clk 0:02:55]} 6. Qb3 {[%clk 0:02:46.1]} 6... c4 {[%clk 0:02:55.5]}
7. Qc2 {[%clk 0:02:45.9]} 7... Nh5 {[%clk 0:02:55.6]} 8. Bg5 {[%clk 0:02:43.8]}
8... h6 {[%clk 0:02:55.8]} 9. Bh4 {[%clk 0:02:44.2]} 9... g5 {[%clk 0:02:56.2]}
10. Be2 {[%clk 0:02:43.9]} 10... Ng7 {[%clk 0:02:55.5]} 11. Bg3 {[%clk
0:02:44.1]} 11... Bf5 {[%clk 0:02:56.2]} 12. Qc1 {[%clk 0:02:43.3]} 12... e6
{[%clk 0:02:56]} 13. e4 {[%clk 0:02:28.3]} 13... Bg6 {[%clk 0:02:53.7]} 14. f4
{[%clk 0:02:18.3]} 14... gxf4 {[%clk 0:02:51.5]} 15. Bxf4 {[%clk 0:02:19.2]}
15... Bxe4 {[%clk 0:02:39.5]} 16. Nxe4 {[%clk 0:02:16.7]} 16... dxe4 {[%clk
0:02:40.4]} 17. Bxc4 {[%clk 0:02:16.7]} 17... e5 {[%clk 0:02:36.2]} 18. dxe5
{[%clk 0:02:08.4]} 18... Bc5 {[%clk 0:02:35.7]} 19. Nh3 {[%clk 0:02:03.5]} 19...
Nf5 {[%clk 0:02:27.5]} 20. Qc2 {[%clk 0:01:45.6]} 20... Ne3 {[%clk 0:01:56.2]}
21. Bxe3 {[%clk 0:01:26.8]} 21... Bxe3 {[%clk 0:01:55.8]} 22. Rf1 {[%clk
0:00:49.8]} 22... O-O-O {[%clk 0:01:49.9]} 23. Bb3 {[%clk 0:00:25.5]} 23... Nxe5
{[%clk 0:01:44.8]} 24. Qxe4 {[%clk 0:00:24.5]} 24... Nd3+ {[%clk 0:01:44.2]} 25.
Ke2 {[%clk 0:00:22.7]} 25... Rhe8 {[%clk 0:01:41.7]} 26. Qf5+ {[%clk 0:00:23.1]}
26... Kb8 {[%clk 0:01:38.7]} 27. Kf3 {[%clk 0:00:22.3]} 27... Ne5+ {[%clk
0:01:28.2]} 28. Kg3 {[%clk 0:00:17.4]} 28... Rg8+ {[%clk 0:01:25.9]} 29. Kh4
{[%clk 0:00:18]} 29... Rg4+ {[%clk 0:01:15.8]} 30. Kh5 {[%clk 0:00:14.2]} 30...
Qg6+ {[%clk 0:01:13.9]} 31. Qxg6 {[%clk 0:00:14.3]} 31... fxg6# {[%clk
0:01:14.4]} 0-1

[Event "Late-Titled-Tuesday-Blitz-July-09-2024"]
[Site "Chess.com"]
[Date "2024.07.09"]
[Round "5"]
[White "katharinareinecke"]
[Black "KebabJangles"]
[Result "0-1"]
[WhiteElo "2091"]
[BlackElo "2364"]
[TimeControl "180+1"]
[EndTime "14:53:20 PDT"]
[Termination "KebabJangles won by checkmate"]

1. e4 {[%clk 0:03:00.9]} 1... c5 {[%clk 0:02:57.1]} 2. Nf3 {[%clk 0:03:00.2]}
2... e6 {[%clk 0:02:55.7]} 3. g3 {[%clk 0:02:59.8]} 3... d5 {[%clk 0:02:54.4]}
4. exd5 {[%clk 0:02:58.3]} 4... exd5 {[%clk 0:02:55.3]} 5. Bg2 {[%clk
0:02:58.5]} 5... Nf6 {[%clk 0:02:55.8]} 6. O-O {[%clk 0:02:57.7]} 6... Be7
{[%clk 0:02:56.7]} 7. d4 {[%clk 0:02:57.8]} 7... O-O {[%clk 0:02:56.8]} 8. c4
{[%clk 0:02:54]} 8... dxc4 {[%clk 0:02:55.6]} 9. Na3 {[%clk 0:02:44.8]} 9... Nc6
{[%clk 0:02:53.3]} 10. Nxc4 {[%clk 0:02:37.8]} 10... cxd4 {[%clk 0:02:52.3]} 11.
b3 {[%clk 0:02:31.5]} 11... Bf5 {[%clk 0:02:47.2]} 12. Bb2 {[%clk 0:02:30.6]}
12... d3 {[%clk 0:02:44.8]} 13. Nh4 {[%clk 0:02:23.5]} 13... Be4 {[%clk
0:02:29.5]} 14. Bxf6 {[%clk 0:02:03.3]} 14... Bxf6 {[%clk 0:02:20.6]} 15. Bxe4
{[%clk 0:02:02.6]} 15... Bxa1 {[%clk 0:02:20.4]} 16. Qxa1 {[%clk 0:02:01.5]}
16... g6 {[%clk 0:02:05.2]} 17. Rd1 {[%clk 0:01:40.1]} 17... Qe7 {[%clk
0:01:59.6]} 18. Bxd3 {[%clk 0:01:35.8]} 18... Rad8 {[%clk 0:01:56.5]} 19. Bf1
{[%clk 0:01:27.5]} 19... Rxd1 {[%clk 0:01:53.8]} 20. Qxd1 {[%clk 0:01:28.4]}
20... Rd8 {[%clk 0:01:54.1]} 21. Qg4 {[%clk 0:01:12.8]} 21... Nd4 {[%clk
0:01:44.6]} 22. f4 {[%clk 0:01:00.7]} 22... f5 {[%clk 0:01:40.1]} 23. Qh3 {[%clk
0:00:39.9]} 23... Qc5 {[%clk 0:01:28.4]} 24. Kh1 {[%clk 0:00:36]} 24... b5
{[%clk 0:01:26.7]} 25. Ne5 {[%clk 0:00:33.3]} 25... Nc2 {[%clk 0:01:23.8]} 26.
Nhxg6 {[%clk 0:00:19.1]} 26... hxg6 {[%clk 0:01:21.3]} 27. Nxg6 {[%clk
0:00:19.4]} 27... Qc6+ {[%clk 0:01:21.4]} 28. Qg2 {[%clk 0:00:11.4]} 28... Qxg6
{[%clk 0:01:20.2]} 29. Qxc2 {[%clk 0:00:11.5]} 29... Qe6 {[%clk 0:01:16.4]} 30.
Bg2 {[%clk 0:00:10.4]} 30... Qe1+ {[%clk 0:01:15.9]} 31. Bf1 {[%clk 0:00:08.5]}
31... Qxf1# {[%clk 0:01:15.4]} 0-1

[Event "Late-Titled-Tuesday-Blitz-July-09-2024"]
[Site "Chess.com"]
[Date "2024.07.09"]
[Round "5"]
[White "Adar_07"]
[Black "Bugcrusher"]
[Result "0-1"]
[WhiteElo "2715"]
[BlackElo "2491"]
[TimeControl "180+1"]
[EndTime "14:53:24 PDT"]
[Termination "Bugcrusher won by checkmate"]

1. e4 {[%clk 0:02:58.4]} 1... e6 {[%clk 0:02:42.9]} 2. d4 {[%clk 0:02:57.6]}
2... d5 {[%clk 0:02:41.1]} 3. Nd2 {[%clk 0:02:56.4]} 3... Be7 {[%clk 0:02:35.3]}
4. Ngf3 {[%clk 0:02:47.3]} 4... Nf6 {[%clk 0:02:31.9]} 5. e5 {[%clk 0:02:47.2]}
5... Nfd7 {[%clk 0:02:30.5]} 6. Bd3 {[%clk 0:02:46.3]} 6... c5 {[%clk
0:02:30.5]} 7. c3 {[%clk 0:02:46]} 7... Nc6 {[%clk 0:02:31.1]} 8. O-O {[%clk
0:02:43.4]} 8... a5 {[%clk 0:02:31.6]} 9. Re1 {[%clk 0:02:40.2]} 9... cxd4
{[%clk 0:02:29.9]} 10. cxd4 {[%clk 0:02:39.8]} 10... Qb6 {[%clk 0:02:30.4]} 11.
Nf1 {[%clk 0:02:28.4]} 11... Nxd4 {[%clk 0:02:26.3]} 12. Be3 {[%clk 0:02:27.8]}
12... Nxf3+ {[%clk 0:02:24.1]} 13. Qxf3 {[%clk 0:02:28.7]} 13... Nc5 {[%clk
0:02:24.2]} 14. Rac1 {[%clk 0:02:25.2]} 14... Bd7 {[%clk 0:02:22.4]} 15. Qg3
{[%clk 0:02:19]} 15... O-O {[%clk 0:02:19.2]} 16. Bh6 {[%clk 0:02:04.5]} 16...
g6 {[%clk 0:02:18.9]} 17. Bxf8 {[%clk 0:02:03.8]} 17... Bxf8 {[%clk 0:02:19]}
18. Bb1 {[%clk 0:02:00.2]} 18... Qxb2 {[%clk 0:02:11.8]} 19. Ne3 {[%clk
0:02:00.2]} 19... Rc8 {[%clk 0:02:01.4]} 20. Ng4 {[%clk 0:01:59.7]} 20... Ne4
{[%clk 0:01:58.2]} 21. Rxc8 {[%clk 0:01:39.6]} 21... Nxg3 {[%clk 0:01:52.4]} 22.
Nf6+ {[%clk 0:01:34.3]} 22... Kg7 {[%clk 0:01:51.2]} 23. Nxd7 {[%clk 0:01:34.6]}
23... Bb4 {[%clk 0:01:41.6]} 24. Rd1 {[%clk 0:01:05.8]} 24... Ne2+ {[%clk
0:01:33.3]} 25. Kh1 {[%clk 0:01:02.4]} 25... Nc3 {[%clk 0:01:32]} 26. Rf1 {[%clk
0:00:59.7]} 26... Nxb1 {[%clk 0:01:29.3]} 27. g4 {[%clk 0:00:50.5]} 27... Nd2
{[%clk 0:01:26]} 28. Rg1 {[%clk 0:00:38.5]} 28... Ne4 {[%clk 0:01:11.7]} 29. g5
{[%clk 0:00:31.5]} 29... Qxf2 {[%clk 0:00:58.8]} 30. Nf6 {[%clk 0:00:31.3]}
30... Qf3+ {[%clk 0:00:56.2]} 31. Rg2 {[%clk 0:00:30.8]} 31... Qf1+ {[%clk
0:00:56]} 32. Rg1 {[%clk 0:00:31]} 32... Nf2# {[%clk 0:00:55.5]} 0-1